bitfinex/quotes_ETHUSD_20250424
["timestamp","ask_amount","ask_price","bid_price","bid_amount"]
[1745506173941,0.10157539,1765.9,1765.5,0.80261338]
[1745506175045,0.10157539,1765.9,1765.4,2.30507665]
[1745506175217,0.10157539,1765.9,1765.6,5.66362827]
[1745506175419,0.10157539,1765.9,1765.8,5.66315551]
[1745506175622,0.00157539,1765.9,1765.7,6.49612947]
[1745506176048,0.00157539,1765.9,1765.7,6.49605318]
[1745506176246,0.00157539,1765.9,1765.8,0.64960532]
[1745506176939,0.00157539,1765.9,1765.8,6.31276083]
[1745506179262,0.00157539,1765.9,1765.8,14.36006028]
[1745506179457,0.31674955,1766.5,1766.4,5.66123188]
[1745506179658,0.31674955,1766.5,1766.4,6.41153188]
[1745506179990,0.7891,1767.0,1766.5,5.66073513]
[1745506180165,0.8891,1767.0,1766.4,8.11789476]
[1745506180456,0.8891,1767.0,1766.4,8.11768442]
[1745506180457,1.20579905,1767.0,1766.4,8.11768442]
[1745506180628,1.20579905,1767.0,1766.4,8.17428191]
[1745506180955,1.20579905,1767.0,1766.4,8.17425747]
[1745506181159,1.20579905,1767.0,1766.5,0.81742575]
[1745506181360,0.8891,1767.0,1766.5,0.81742575]
[1745506182644,0.8891,1767.0,1766.5,6.47818345]
[1745506183257,0.8891,1767.0,1766.5,0.81742575]
[1745506183623,0.8891,1767.0,1766.6,0.05659837]
[1745506183822,0.8891,1767.0,1766.6,0.7100861]
[1745506184027,0.8891,1767.0,1766.6,6.37054914]
[1745506185364,0.8891,1767.0,1766.6,0.7100861]
[1745506186361,0.8891,1767.0,1766.6,6.37065379]
[1745506186763,0.8891,1767.0,1766.7,0.8087]
[1745506186764,0.1,1767.0,1766.7,0.8087]
[1745506186981,0.1,1767.0,1766.9,5.65962986]
[1745506187132,0.1,1767.0,1766.9,6.79157093]
[1745506187331,0.1,1767.1,1766.9,6.84815711]
[1745506188367,0.1,1767.1,1766.9,6.79157093]
[1745506188568,0.1,1767.1,1767.0,6.44830956]
[1745506188864,0.1,1767.1,1767.0,9.44830956]
[1745506189779,0.7522,1768.3,1767.6,0.7972]
[1745506190080,0.7522,1768.3,1767.7,5.71347534]
[1745506190385,0.7522,1768.3,1767.8,0.57134753]
[1745506190578,0.7522,1768.3,1767.9,5.71294776]
[1745506190732,0.7522,1768.3,1767.6,0.7972]
[1745506191168,0.7522,1768.3,1767.7,0.05656008]
[1745506191332,0.7522,1768.3,1767.6,0.85376008]
[1745506191662,0.7522,1768.3,1767.7,5.65696127]
[1745506191834,0.7522,1768.3,1767.7,6.3080334]
[1745506192035,0.7522,1768.3,1767.7,0.65107213]
[1745506192461,0.7522,1768.3,1767.6,6.45443915]
[1745506192846,0.7522,1768.3,1767.6,6.5109978]
[1745506193071,0.7522,1768.3,1767.6,0.85375865]
[1745506193374,0.7522,1768.3,1767.6,0.85375857]
[1745506193536,0.7522,1768.3,1767.8,5.6564671]
[1745506193734,0.7522,1768.3,1767.9,0.56564671]
[1745506194131,0.7522,1768.3,1767.9,6.22187699]
[1745506194362,5.397,1768.5,1768.0,5.65607019]
[1745506194679,6.1888,1768.5,1768.1,0.05654768]
[1745506195873,6.1888,1768.5,1767.9,0.62219448]
[1745506196040,6.1888,1768.5,1767.9,6.27861329]
[1745506196241,6.1888,1768.5,1768.0,0.62786133]
[1745506196473,6.1888,1768.5,1767.9,0.05654777]
[1745506196878,6.1888,1768.5,1767.9,5.71297281]
[1745506197236,6.1888,1768.5,1768.1,5.65563721]
[1745506197436,6.1888,1768.5,1768.2,0.05654901]
[1745506197641,6.1888,1768.5,1768.0,5.71263891]
[1745506197842,6.1888,1768.5,1768.1,0.57126389]
[1745506198142,6.1888,1768.5,1768.1,5.71229929]
[1745506198650,6.1888,1768.5,1768.0,5.65606937]
[1745506199475,6.1888,1768.5,1767.9,5.65641695]
[1745506200048,6.1888,1768.5,1768.0,0.05654651]
[1745506200347,6.1888,1768.5,1768.0,5.71253747]
[1745506200547,6.1888,1768.5,1768.1,0.57125375]
[1745506200782,6.1888,1768.5,1767.8,9.44420524]
[1745506201080,0.7885,1768.4,1767.8,8.65673349]
[1745506201295,0.7885,1768.4,1767.8,3.0]
[1745506201593,0.7885,1768.4,1767.8,8.71308473]
[1745506201762,0.7885,1768.4,1767.9,5.65630428]
[1745506202086,0.7885,1768.4,1768.0,1.4044785]
[1745506202267,0.7885,1768.4,1768.1,5.65565953]
[1745506202634,0.7755,1768.9,1768.5,5.65430756]
[1745506202883,0.7755,1768.9,1768.6,0.05652936]
[1745506203048,0.7755,1768.9,1768.5,5.7109978]
[1745506203388,0.4129318,1769.0,1768.6,6.22510175]
[1745506203570,0.4129318,1769.0,1768.6,0.57109978]
[1745506203763,0.38506286,1769.0,1768.6,5.65387129]
[1745506203973,0.38506286,1769.0,1768.6,5.65406056]
[1745506204158,0.38506286,1769.0,1768.7,0.05652259]
[1745506204359,0.38506286,1769.0,1768.6,5.65401207]
[1745506204568,0.38506286,1769.0,1768.7,5.65365961]
[1745506204881,0.38506286,1769.0,1768.8,0.62188869]
[1745506205077,0.38506286,1769.0,1768.8,0.05652273]
[1745506205254,0.38506286,1769.0,1768.7,0.05652265]
[1745506205977,0.38506286,1769.0,1768.9,8.65323082]
[1745506206163,0.38506286,1769.0,1768.9,3.0]
[1745506206881,0.38506286,1769.0,1768.8,3.0]
[1745506207059,0.38506286,1769.0,1768.8,3.3]
[1745506208077,0.38506286,1769.0,1768.9,0.05652315]
[1745506208276,0.38506286,1769.0,1768.9,5.65323082]
[1745506208465,0.38506286,1769.0,1768.9,5.70974742]
[1745506208763,0.38506286,1769.0,1768.8,9.74691922]
[1745506208965,0.38506286,1769.0,1768.9,0.97469192]
[1745506209379,0.38506286,1769.0,1768.9,6.62792274]
[1745506209686,0.38506286,1769.0,1768.9,6.6844394]
[1745506209989,0.38506286,1769.0,1768.9,14.67512056]
[1745506210206,0.38506286,1769.0,1768.9,15.4082039]
[1745506210407,0.38506286,1769.0,1768.9,15.51157726]
[1745506210774,0.807,1769.9,1769.5,5.65119433]
[1745506210976,0.5,1770.0,1769.6,11.26307007]
[1745506211229,0.5,1770.0,1769.6,0.62162045]
[1745506211375,0.5,1770.0,1769.6,0.56511943]
[1745506211819,0.5,1770.0,1769.6,6.21601389]
[1745506212016,0.5,1770.0,1769.7,0.05649106]
[1745506212175,0.5,1770.0,1769.8,0.8164]
[1745506212376,0.5,1770.0,1769.8,11.45731557]
[1745506212621,0.5,1770.0,1769.9,5.65003672]
[1745506212827,0.5,1770.0,1769.8,11.45723764]
[1745506213125,0.5,1770.0,1769.9,9.4980207]
[1745506213420,0.5,1770.0,1769.9,11.51190653]
[1745506213628,0.5,1770.0,1769.9,16.44610371]
[1745506213783,0.5,1770.0,1769.9,16.54941866]
[1745506214302,0.4129318,1770.7,1770.5,0.7591]
[1745506215410,0.4129318,1770.7,1770.3,6.1786]
[1745506215609,1.1861318,1770.7,1770.2,3.0]
[1745506215920,1.1861318,1770.7,1770.0,11.82627246]
[1745506215921,0.4129318,1770.7,1770.6,5.647803]
[1745506216090,0.4129318,1770.7,1770.5,0.7896]
[1745506216288,0.4129318,1770.7,1770.4,3.0]
[1745506216486,0.4129318,1770.7,1770.4,8.64826552]
[1745506216687,0.4129318,1770.7,1770.5,5.64800983]
[1745506216994,0.4129318,1770.7,1770.6,6.26906807]
[1745506217294,0.4129318,1770.7,1770.6,10.12727809]
[1745506217494,0.4129318,1770.7,1770.6,4.47947509]
[1745506219513,0.80280781,1772.2,1771.8,5.64378016]
[1745506219744,0.80280781,1772.2,1771.6,6.3077389]
[1745506219961,0.80280781,1772.2,1771.6,0.66314756]
[1745506220151,0.75280781,1772.2,1771.5,3.93032164]
[1745506220619,0.75280781,1772.2,1771.6,0.05643054]
[1745506220821,0.75280781,1772.2,1771.5,0.15965218]
[1745506221037,6.39565071,1772.2,1771.5,0.15965218]
[1745506221213,0.63956507,1772.1,1771.5,0.10322164]
[1745506221413,5.384,1772.0,1771.5,0.15965633]
[1745506221828,0.4129318,1772.5,1771.6,0.8055]
[1745506222036,11.02628314,1772.4,1771.6,0.8055]
[1745506222209,1.10262831,1772.3,1771.5,0.10322164]
[1745506222405,5.64275396,1772.2,1771.4,3.0]
[1745506222611,5.64419706,1771.8,1771.0,0.8055]
[1745506222810,5.64523864,1771.5,1770.7,1.1055]
[1745506223043,5.64576398,1771.3,1770.5,0.8055]
[1745506223233,6.1982,1771.2,1770.5,0.8055]
[1745506223747,6.1982,1771.2,1770.6,0.056459]
[1745506224075,0.8054,1772.1,1771.0,4.99068116]
[1745506224245,0.8054,1772.1,1771.2,3.8234]
[1745506224410,6.44844763,1772.1,1771.2,5.35378361]
[1745506224737,12.17944763,1772.1,1771.2,11.05607639]
[1745506225451,6.5364,1772.1,1771.3,5.64533628]
[1745506225621,0.8054,1772.1,1771.4,5.64511633]
[1745506225821,0.8054,1772.1,1771.5,3.56451163]
[1745506226136,1.2292318,1772.5,1771.7,10.5967287]
[1745506226341,1.2292318,1772.5,1771.9,6.42149532]
[1745506226539,0.4129318,1772.5,1772.0,5.69974017]
[1745506226742,0.4129318,1772.5,1771.9,6.42145431]
[1745506226940,0.4129318,1772.5,1772.0,0.64214543]
[1745506227453,0.4129318,1772.5,1771.9,0.778]
[1745506227619,0.4129318,1772.5,1772.0,0.05641761]
[1745506228141,0.4129318,1772.5,1772.0,5.64313456]
[1745506228448,0.4129318,1772.5,1771.9,3.778]
[1745506228650,0.4129318,1772.5,1772.0,5.69952814]
[1745506228856,0.4129318,1772.5,1772.0,0.95807265]
[1745506229279,0.4129318,1772.5,1772.1,0.05641145]
[1745506229582,0.4129318,1772.5,1772.2,0.8287]
[1745506229784,0.4129318,1772.5,1772.3,5.7864012]
[1745506229968,0.4129318,1772.5,1772.3,5.83317505]
[1745506230175,0.4129318,1772.5,1772.3,0.66618751]
[1745506230344,0.4129318,1772.5,1772.3,0.05640375]
[1745506230677,0.4129318,1772.5,1772.4,5.64206725]
[1745506230840,0.4129318,1772.5,1772.4,0.10316922]
[1745506232463,6.39578848,1772.3,1771.6,0.8009]
[1745506232666,0.7533,1772.2,1771.3,6.5299]
[1745506232893,0.8014,1771.9,1771.3,6.5299]
[1745506233041,0.8014,1771.9,1771.2,1.53038361]
[1745506233241,12.17306627,1771.9,1771.3,0.05643912]
[1745506233490,12.17306627,1771.9,1771.0,6.47604891]
[1745506233650,12.17310008,1771.9,1771.0,6.47604891]
[1745506233846,0.79223829,1771.9,1771.0,0.82954065]
[1745506234059,0.79223829,1771.9,1771.3,5.64552398]
[1745506234291,0.79223829,1771.9,1771.4,0.62098641]
[1745506234595,0.79223829,1771.9,1771.5,0.05643409]
[1745506234758,0.79223829,1771.9,1771.2,3.0]
[1745506234954,5.64409263,1771.8,1771.1,5.83124495]
[1745506235156,5.64434663,1771.7,1771.1,0.10324495]
[1745506235345,5.6443507,1771.7,1771.1,0.10324495]
[1745506235551,6.77319111,1771.7,1770.8,0.7909]
[1745506236000,5.64558709,1771.3,1770.7,5.728]
[1745506236161,5.728,1771.4,1770.8,0.05645702]
[1745506236372,5.728,1771.5,1770.9,5.64669641]
[1745506236568,16.931,1772.1,1771.1,5.64595524]
[1745506236775,0.7858,1771.8,1771.2,0.05644081]
[1745506237088,0.7858,1771.8,1771.3,0.05643979]
[1745506237307,0.7858,1771.8,1771.0,1.36996964]
[1745506237460,0.8029,1771.7,1771.0,0.62110946]
[1745506237661,0.8029,1771.7,1771.1,0.05644074]
[1745506237894,0.8029,1771.7,1770.9,5.64667191]
[1745506238096,0.8029,1771.7,1771.0,5.70295986]
[1745506238291,0.8029,1771.7,1771.1,6.41688233]
[1745506238603,0.8029,1771.7,1771.1,0.7707]
[1745506239158,6.44723413,1771.7,1771.2,3.0]
[1745506239667,0.8029,1771.7,1771.2,3.0]
[1745506240596,5.728,1771.9,1771.3,0.05644656]
[1745506240899,6.5304,1771.9,1771.3,0.85134656]
[1745506241400,12.17427257,1771.9,1771.2,3.0]
[1745506241558,6.5304,1771.9,1771.3,0.3]
[1745506241757,0.8024,1771.9,1771.4,0.05644021]
[1745506242471,0.8024,1771.9,1771.3,5.94551742]
[1745506242710,0.774,1772.2,1771.3,0.35643411]
[1745506242919,6.502,1772.2,1771.5,5.6448029]
[1745506243112,6.502,1772.2,1771.6,0.62090895]
[1745506243267,6.502,1772.2,1771.6,0.56448029]
[1745506243467,12.14478289,1772.2,1771.3,5.9454024]
[1745506243663,12.14478289,1772.2,1771.3,0.3]
[1745506243664,5.64312587,1772.1,1771.3,0.3]
[1745506244163,6.502,1772.2,1771.3,5.94543657]
[1745506244397,12.45931662,1772.2,1771.3,0.3]
[1745506244606,6.81647374,1772.2,1771.4,5.64523415]
[1745506244783,6.81647374,1772.2,1771.5,0.56452342]
[1745506244981,6.81647374,1772.2,1771.6,0.05643201]
[1745506245200,0.31447374,1772.2,1771.8,5.64377995]
[1745506245390,6.9603318,1772.5,1771.9,0.05642486]
[1745506245596,6.9603318,1772.5,1772.0,5.64324206]
[1745506245767,0.4129318,1772.5,1772.1,5.69926029]
[1745506246100,0.4129318,1772.5,1772.2,0.56992603]
[1745506246270,0.4129318,1772.5,1772.2,6.21251047]
[1745506246465,0.4129318,1772.5,1772.4,5.64206725]
[1745506246663,0.35818318,1773.1,1773.0,5.64015792]
[1745506246911,0.35818318,1773.1,1773.0,1.18443704]
[1745506247078,0.35818318,1773.1,1773.0,1.12805015]
[1745506247274,0.35818318,1773.1,1772.5,0.7714]
[1745506247476,0.8184,1773.0,1772.3,5.728]
[1745506247689,0.8184,1773.0,1772.5,5.64160748]
[1745506247864,0.8184,1773.0,1772.4,5.64185573]
[1745506248201,0.8184,1773.0,1772.4,0.05639695]
[1745506248397,0.10623718,1772.9,1772.4,6.3538333]
[1745506248702,2.46,1772.9,1772.4,0.65557969]
[1745506248920,0.18664375,1772.8,1772.3,6.41377564]
[1745506249203,0.18664375,1772.8,1772.7,0.7588]
[1745506249390,0.18664375,1772.8,1772.6,5.69761647]
[1745506249564,2.46,1772.9,1772.5,12.40041899]
[1745506249565,2.46,1772.9,1772.5,3.7588]
[1745506249890,0.17085488,1772.8,1772.7,5.64094796]
[1745506250091,2.46,1772.9,1772.7,1.13387787]
[1745506250316,0.17085488,1772.8,1772.6,5.69767335]
[1745506250517,0.17085488,1772.8,1772.7,9.41501242]
[1745506250681,2.46,1772.9,1772.8,5.64079422]
[1745506250860,2.46,1772.9,1772.8,5.69718808]
[1745506251060,2.46,1772.9,1772.7,9.5179595]
[1745506251302,2.46,1772.9,1772.8,6.64898659]
[1745506251619,2.46,1773.0,1772.9,9.46447605]
[1745506251819,2.46,1773.0,1772.9,9.56761618]
[1745506252827,2.46,1773.0,1772.9,6.56761618]
[1745506253031,2.46,1773.0,1772.9,9.62400773]
[1745506253231,2.46,1773.0,1772.9,11.18925447]
[1745506253693,2.46,1773.0,1772.9,11.2456419]
[1745506255113,2.46,1773.0,1772.9,11.18925447]
[1745506255507,2.46,1773.0,1772.9,11.2456426]
[1745506255934,2.46,1773.0,1772.9,11.18925447]
[1745506256301,2.46,1773.0,1772.9,11.24564357]
[1745506257532,2.46,1773.0,1772.9,11.24563364]
[1745506259643,0.35818318,1773.1,1772.9,16.74806591]
[1745506259815,0.5,1774.2,1773.7,5.63782576]
[1745506260327,0.15664616,1774.1,1773.8,5.63759677]
[1745506260501,0.15664616,1774.1,1773.8,5.63739647]
[1745506260705,0.7953,1774.1,1773.3,0.7713]
[1745506260945,0.15238689,1774.0,1773.3,6.41035276]
[1745506261112,0.15238689,1774.0,1773.4,5.63869363]
[1745506261313,0.15238689,1774.0,1773.3,0.87441686]
[1745506261525,0.15238689,1774.0,1773.5,8.74146945]
[1745506261713,0.7953,1774.1,1773.6,0.87414695]
[1745506261913,0.7705,1773.9,1773.5,0.10310523]
[1745506262124,0.14002943,1773.8,1773.3,5.63906019]
[1745506262438,0.14002943,1773.8,1773.3,5.63901386]
[1745506262735,0.14002943,1773.8,1773.4,0.05637077]
[1745506263142,0.7705,1773.9,1773.4,0.05637077]
[1745506263319,0.1399705,1773.7,1773.4,0.05637077]
[1745506263520,0.7705,1773.9,1773.2,5.69589147]
[1745506263736,0.13997292,1773.8,1773.2,0.05637351]
[1745506264121,6.4375554,1773.6,1773.0,1.12456336]
[1745506264328,5.63915377,1773.4,1772.9,32.0]
[1745506264631,10.59037425,1773.7,1772.9,32.0]
[1745506264632,0.13994424,1773.3,1772.9,32.0]
[1745506264946,0.8178,1773.7,1773.0,0.05639384]
[1745506265131,0.8178,1773.7,1773.1,5.63955386]
[1745506265338,0.13995151,1773.6,1773.2,0.05637722]
[1745506265507,0.13995151,1773.6,1773.2,0.62597033]
[1745506265710,0.13995151,1773.6,1773.2,0.05637722]
[1745506265935,0.13995151,1773.6,1773.0,11.54092681]
[1745506266139,0.13995151,1773.6,1773.2,0.8267]
[1745506266437,0.7577,1773.9,1773.3,5.63905018]
[1745506266662,0.12829094,1773.8,1773.2,0.10312268]
[1745506266845,0.12829094,1773.8,1773.3,0.05637662]
[1745506267517,0.80699003,1773.8,1773.3,0.05637662]
[1745506267725,0.12829094,1773.8,1773.7,9.425732]
[1745506267958,0.5,1774.2,1774.1,5.63666084]
[1745506268130,0.5,1774.2,1774.1,6.48080121]
[1745506268522,0.5,1774.2,1774.1,6.42446084]
[1745506268755,0.5,1774.2,1774.1,9.5275312]
[1745506268967,0.5,1774.2,1774.1,11.04396956]
[1745506269293,0.001,1775.0,1774.1,11.04396956]
[1745506269294,0.001,1775.0,1774.9,5.63412023]
[1745506269442,0.001,1775.0,1774.9,0.8102]
[1745506269767,0.001,1775.0,1774.9,0.05631792]
[1745506269946,0.005,1775.8,1774.7,5.9]
[1745506270276,5.63229891,1775.5,1774.7,5.95633157]
[1745506270566,5.63338059,1775.2,1774.3,3.0]
[1745506270857,5.6344483,1774.8,1774.1,0.10307036]
[1745506271037,5.9,1774.8,1774.1,0.10307036]
[1745506271237,0.59,1774.7,1774.1,0.10307036]
[1745506271640,6.22476969,1774.7,1774.1,0.10307036]
[1745506272053,6.22490487,1774.7,1774.1,0.10307036]
[1745506272262,5.63586393,1774.4,1773.8,0.05635673]
[1745506272429,5.63675698,1774.1,1773.3,0.8314]
[1745506272638,5.58652546,1774.2,1773.3,0.88776721]
[1745506272848,5.63712023,1774.0,1773.3,0.05636753]
[1745506273142,0.7859,1773.9,1773.3,5.69539351]
[1745506273347,0.7949962,1773.9,1773.4,5.74178141]
[1745506273543,0.0090962,1773.9,1773.6,5.63810246]
[1745506273854,0.0090962,1773.9,1773.7,0.05636212]
[1745506274235,0.0090962,1773.9,1773.7,5.63776417]
[1745506274435,0.0090962,1773.9,1773.8,5.7970561]
[1745506274644,0.0090962,1773.9,1773.8,8.20978135]
[1745506275041,0.005,1775.2,1773.9,0.55]
[1745506275240,0.005,1775.2,1774.7,0.774]
[1745506275472,0.005,1775.2,1774.8,0.10302971]
[1745506275643,0.005,1775.2,1774.9,0.05632244]
[1745506275851,0.005,1775.2,1774.8,0.10302971]
[1745506276033,0.8245,1775.1,1774.8,0.10302971]
[1745506276233,0.8245,1775.1,1774.2,8.69254812]
[1745506276436,0.8245,1775.1,1774.2,3.05633579]
[1745506276730,0.8245,1775.1,1774.4,5.63556911]
[1745506277034,0.8245,1775.1,1774.5,0.05633836]
[1745506277265,0.8245,1775.1,1774.5,0.15938148]
[1745506277468,0.8245,1775.1,1774.6,5.63495132]
[1745506277664,0.005,1775.2,1774.7,0.83173026]
[1745506277906,0.005,1775.2,1774.8,11.26867466]
[1745506278183,0.005,1775.2,1774.9,5.63407376]
[1745506278472,0.005,1775.2,1775.1,5.63348543]
[1745506278772,0.005,1775.2,1775.1,9.55329773]
[1745506278986,0.005,1775.2,1775.1,9.60960465]
[1745506279371,0.005,1775.2,1775.1,9.55329773]
[1745506279692,0.005,1775.2,1775.1,11.56723271]
[1745506280201,0.005,1775.2,1775.1,0.1030123]
[1745506280488,0.005,1775.2,1775.1,0.15933283]
[1745506280668,0.005,1775.2,1775.1,8.73649773]
[1745506281388,0.005,1775.2,1775.1,3.1030123]
[1745506281596,0.005,1775.2,1775.1,0.1030123]
[1745506281901,0.005,1775.2,1774.7,5.63473881]
[1745506282057,0.005,1775.2,1774.8,0.56347388]
[1745506282257,0.005,1775.2,1774.9,0.05632138]
[1745506282808,0.005,1775.2,1775.1,5.63348543]
[1745506283018,0.005,1775.2,1775.1,8.79280689]
[1745506283879,0.005,1775.2,1775.1,8.7928027]
[1745506284603,0.005,1775.2,1775.1,6.28531727]
[1745506284763,0.005,1775.2,1775.1,12.62299443]
[1745506284959,0.005,1775.2,1775.1,12.56668946]
[1745506286061,0.005,1775.2,1775.1,6.44068946]
[1745506286262,0.005,1775.2,1775.1,6.49699578]
[1745506287193,0.005,1775.2,1775.1,0.86351035]
[1745506287380,0.005,1775.2,1775.1,0.86351047]
[1745506287581,0.005,1775.2,1775.1,0.1030123]
[1745506288162,0.005,1775.2,1774.7,0.8205]
[1745506288488,0.005,1775.2,1774.8,0.05632401]
[1745506288802,0.005,1775.2,1774.9,0.10302391]
[1745506289371,0.005,1775.2,1774.9,3.10302391]
[1745506289606,0.005,1775.2,1775.0,0.05632567]
[1745506289980,0.005,1775.2,1775.0,0.05631867]
[1745506290180,0.005,1775.2,1774.9,3.4133263]
[1745506290496,0.005,1775.2,1775.0,0.05632354]
[1745506290865,0.005,1775.2,1775.1,5.63348543]
[1745506291063,0.005,1775.2,1775.1,6.76583318]
[1745506291268,0.005,1775.2,1775.1,1.13234775]
[1745506291567,0.005,1775.2,1775.0,0.1030181]
[1745506291763,0.7583,1775.1,1774.3,6.69832226]
[1745506291969,0.7583,1775.1,1774.4,0.10305294]
[1745506292262,0.7583,1775.1,1774.5,0.05633496]
[1745506292599,0.7583,1775.1,1774.5,5.69161582]
[1745506292787,0.7583,1775.1,1774.6,0.56916158]
[1745506292970,0.7583,1775.1,1774.4,0.10305294]
[1745506293595,0.7583,1775.1,1774.5,0.05633785]
[1745506294404,0.7583,1775.1,1774.6,3.0]
[1745506294575,0.7583,1775.1,1774.7,5.69092347]
[1745506294769,0.7583,1775.1,1774.7,0.05633787]
[1745506294965,0.7583,1775.1,1774.7,0.92546632]
[1745506295227,0.7583,1775.1,1774.7,5.63459547]
[1745506295506,0.7583,1775.1,1774.8,5.63428432]
[1745506295805,0.005,1775.2,1774.9,5.69032302]
[1745506295969,0.005,1775.2,1774.9,5.690412]
[1745506296175,0.005,1775.2,1775.1,9.39108543]
[1745506296376,0.005,1775.2,1775.1,17.68342477]
[1745506296570,0.005,1775.2,1775.1,8.23603244]
[1745506296797,0.005,1775.2,1775.1,0.1030123]
[1745506297120,0.005,1775.2,1775.1,5.79281547]
[1745506297469,0.005,1775.2,1775.1,0.1030123]
[1745506297671,0.005,1775.2,1775.1,5.79281385]
[1745506298315,0.005,1775.8,1775.4,6.40120168]
[1745506298470,0.005,1775.8,1775.7,5.63158191]
[1745506298677,0.005,1775.8,1775.7,5.68787819]
[1745506299502,0.005,1775.8,1775.7,0.05629628]
[1745506299672,0.005,1775.8,1775.7,5.68787819]
[1745506299866,0.005,1775.8,1775.7,9.49547819]
[1745506300068,0.005,1775.8,1775.7,11.11116614]
[1745506301603,0.005,1775.8,1775.7,11.05486986]
[1745506301772,0.005,1775.8,1775.7,11.11116072]
[1745506301971,0.005,1775.8,1775.7,10.30356116]
[1745506303405,1e-08,1775.8,1775.7,14.12576116]
[1745506303622,1e-08,1775.8,1775.7,14.06946986]
[1745506304294,1e-08,1775.8,1775.7,4.61568795]
[1745506304495,1e-08,1775.8,1775.7,10.30356743]
[1745506304916,1e-08,1775.8,1775.7,4.61568795]
[1745506305117,1e-08,1775.8,1775.7,3.10297749]
[1745506305302,0.77050001,1775.8,1775.7,0.10297749]
[1745506305507,0.77050001,1775.8,1775.1,5.63331459]
[1745506305703,0.77050001,1775.8,1775.2,5.68946006]
[1745506305931,0.77050001,1775.8,1775.3,6.25790414]
[1745506306489,0.77050001,1775.8,1775.3,6.20159465]
[1745506306728,0.77050001,1775.8,1775.7,5.63158191]
[1745506306929,0.77050001,1775.8,1775.5,0.05630355]
[1745506307233,0.77050001,1775.8,1775.5,0.05630644]
[1745506307430,0.77050001,1775.8,1775.4,0.10299489]
[1745506307955,0.77050001,1775.8,1775.1,6.222]
[1745506308129,0.77050001,1775.8,1775.3,0.05630872]
[1745506308330,0.77050001,1775.8,1774.9,5.63398189]
[1745506308492,0.77050001,1775.8,1774.9,0.15933941]
[1745506308699,5.63238514,1775.5,1774.9,0.10302391]
[1745506308924,0.7735,1775.4,1774.9,0.10302391]
[1745506309809,0.7735,1775.4,1775.0,0.05632484]
[1745506310132,0.7735,1775.4,1774.9,0.10302391]
[1745506310529,0.7735,1775.4,1775.0,0.05632491]
[1745506310733,0.7735,1775.4,1774.9,0.10302391]
[1745506311336,0.7735,1775.4,1775.0,0.05633138]
[1745506311633,0.7735,1775.4,1774.6,11.85689179]
[1745506311634,0.7735,1775.4,1774.6,6.222]
[1745506311849,0.7727,1775.2,1774.7,0.6222]
[1745506312027,0.7727,1775.1,1774.7,0.6222]
[1745506312423,0.7727,1775.1,1774.4,5.69202433]
[1745506312634,0.7727,1775.1,1774.4,0.05633847]
[1745506312919,0.7893,1775.0,1774.4,0.05633848]
[1745506314049,0.7893,1775.0,1774.3,0.05634393]
[1745506314346,5.63316828,1775.2,1774.2,0.05634521]
[1745506314347,0.8264,1774.9,1774.2,0.05634521]
[1745506314509,0.8264,1774.9,1774.2,0.68427973]
[1745506315318,0.8264,1774.9,1774.3,5.63586714]
[1745506315522,0.8264,1774.9,1774.4,0.0563421]
[1745506316652,5.63427472,1774.9,1774.2,0.62793452]
[1745506316816,0.8226,1774.8,1774.0,0.7906]
[1745506317016,0.8226,1774.8,1773.9,5.63706512]
[1745506317455,0.8226,1774.8,1774.0,0.05635294]
[1745506317655,0.8226,1774.8,1774.0,5.69326875]
[1745506317810,0.8226,1774.8,1774.0,5.69318478]
[1745506318015,0.8226,1774.8,1774.1,0.56931848]
[1745506318329,0.8226,1774.8,1774.2,0.05635011]
[1745506319052,0.8226,1774.8,1774.3,5.63584408]
[1745506319289,0.8226,1774.8,1774.4,0.05634723]
[1745506320462,0.8226,1774.8,1774.4,5.63548766]
[1745506320642,0.8226,1774.8,1774.5,0.56354877]
[1745506320961,0.8226,1774.8,1774.3,0.05634234]
[1745506321147,0.8226,1774.8,1774.1,5.63651091]
[1745506321550,0.8226,1774.8,1773.9,11.27418107]
[1745506321767,0.8226,1774.8,1773.7,14.17743227]
[1745506321768,7.0476,1774.8,1773.7,11.86267494]
[1745506322065,7.0476,1774.8,1773.6,5.63803834]
[1745506322066,0.7742,1774.5,1773.6,5.63803834]
[1745506322238,0.7742,1774.5,1773.7,6.20150504]
[1745506322425,0.7742,1774.5,1773.8,0.05635992]
[1745506323136,0.7742,1774.5,1773.8,5.69383549]
[1745506323466,0.7742,1774.5,1773.8,0.05635992]
[1745506323684,0.7742,1774.5,1773.8,0.62580625]
[1745506323886,0.7699,1774.4,1773.5,6.225]
[1745506324168,0.7699,1774.3,1773.4,6.226]
[1745506324370,0.7699,1774.3,1773.7,5.63785909]
[1745506324572,0.7699,1774.3,1773.8,0.05636681]
[1745506325074,0.7699,1774.3,1773.6,5.63810114]
[1745506325235,0.7699,1774.3,1773.7,0.56381011]
[1745506325635,0.7699,1774.3,1773.4,11.2773566]
[1745506325944,0.7699,1774.3,1773.5,0.05636947]
[1745506326149,6.9959,1774.3,1773.5,5.69477882]
[1745506326338,6.9959,1774.3,1773.3,6.226]
[1745506326339,0.7522,1774.2,1773.3,17.50405129]
[1745506326533,0.7522,1774.2,1773.4,0.05637394]
[1745506326871,0.7522,1774.2,1773.5,5.63854818]
[1745506327090,0.7522,1774.2,1773.7,5.63776796]
[1745506327383,0.7522,1774.2,1773.8,5.69393344]
[1745506327538,0.7522,1774.2,1773.7,5.63772287]
[1745506327836,0.7522,1774.2,1773.7,5.63772003]
[1745506328037,0.7522,1774.2,1773.8,6.20137795]
[1745506328235,0.7522,1774.2,1774.0,5.63684571]
[1745506328436,0.7522,1774.2,1773.8,0.563772]
[1745506328964,0.7522,1774.2,1773.5,12.64519728]
[1745506329271,0.7522,1774.2,1773.5,11.86537535]
[1745506329648,0.7522,1774.2,1773.4,7.39480178]
[1745506329969,0.7522,1774.2,1773.5,0.0563693]
[1745506330171,0.7522,1774.2,1773.3,6.227]
[1745506330358,5.6368556,1774.1,1773.3,6.227]
[1745506330558,5.6372868,1774.0,1773.0,5.63996518]
[1745506330763,0.8025,1773.8,1772.9,44.36733275]
[1745506330963,6.44057004,1773.7,1773.0,4.43673328]
[1745506331151,0.8008,1773.6,1772.9,32.5]